[Event "*** Titled Tuesday Blitz"]
[Site "Chess.com"]
[Date "2020.02.04"]
[Round "7"]
[White "WelshTiger"]
[Black "kasparicy"]
[Result "0-1"]
[WhiteElo "2310"]
[BlackElo "2264"]
[TimeControl "180+2"]
[EndTime "14:31:42 PST"]
[Termination "kasparicy won by resignation"]

1. e4 {[%clk 0:03:01.9]} 1... c5 {[%clk 0:02:50.6]} 2. Nf3 {[%clk 0:03:02.5]}
2... d6 {[%clk 0:02:50.9]} 3. d4 {[%clk 0:03:02.7]} 3... cxd4 {[%clk 0:02:52.8]}
4. Nxd4 {[%clk 0:03:04.6]} 4... Nf6 {[%clk 0:02:54.1]} 5. Nc3 {[%clk 0:03:06]}
5... a6 {[%clk 0:02:55.8]} 6. Be2 {[%clk 0:03:06.7]} 6... e6 {[%clk 0:02:56.8]}
7. g4 {[%clk 0:02:53.7]} 7... h6 {[%clk 0:02:51.3]} 8. h4 {[%clk 0:02:47.6]}
8... Qc7 {[%clk 0:02:49.7]} 9. Rg1 {[%clk 0:02:48]} 9... b5 {[%clk 0:02:47.2]}
10. g5 {[%clk 0:02:47.9]} 10... hxg5 {[%clk 0:02:27.6]} 11. hxg5 {[%clk
0:02:49.8]} 11... Nfd7 {[%clk 0:02:26.3]} 12. g6 {[%clk 0:02:38]} 12... Ne5
{[%clk 0:02:14.2]} 13. gxf7+ {[%clk 0:02:36.9]} 13... Qxf7 {[%clk 0:02:06.9]}
14. f4 {[%clk 0:02:33.1]} 14... Nc4 {[%clk 0:02:04.3]} 15. Ndxb5 {[%clk
0:02:17]} 15... axb5 {[%clk 0:02:03.3]} 16. Nxb5 {[%clk 0:02:18]} 16... d5
{[%clk 0:01:45.6]} 17. exd5 {[%clk 0:01:57.2]} 17... exd5 {[%clk 0:01:47.5]} 18.
Qxd5 {[%clk 0:01:47.5]} 18... Qxd5 {[%clk 0:01:47.8]} 19. Nc7+ {[%clk
0:01:48.4]} 19... Kf7 {[%clk 0:01:46.4]} 20. Nxd5 {[%clk 0:01:49.7]} 20... Nd6
{[%clk 0:01:31.9]} 21. Nb6 {[%clk 0:01:36.1]} 21... Ra7 {[%clk 0:01:13.2]} 22.
Nxc8 {[%clk 0:01:36.6]} 22... Nxc8 {[%clk 0:01:13.9]} 23. Bd2 {[%clk 0:01:25.7]}
23... Re7 {[%clk 0:01:14.1]} 24. Rg2 {[%clk 0:01:26.5]} 24... Rh1+ {[%clk
0:01:13.2]} 25. Kf2 {[%clk 0:01:23.3]} 25... Rxa1 {[%clk 0:01:09.2]} 26. Bc4+
{[%clk 0:01:24]} 26... Ke8 {[%clk 0:01:09.4]} 27. b4 {[%clk 0:01:08.7]} 27...
Nd6 {[%clk 0:01:08.4]} 28. Bb3 {[%clk 0:01:09.3]} 28... Ne4+ {[%clk 0:01:09.2]}
29. Ke3 {[%clk 0:01:04.3]} 29... Nxd2+ {[%clk 0:01:04.6]} 30. Kxd2 {[%clk
0:01:06.2]} 30... Rd7+ {[%clk 0:00:53.9]} 31. Kc3 {[%clk 0:01:05.4]} 31... Rc7+
{[%clk 0:00:55.1]} 32. Kb2 {[%clk 0:01:05.9]} 32... Re1 {[%clk 0:00:56.5]} 33.
c3 {[%clk 0:01:03.1]} 33... Bd6 {[%clk 0:00:53.8]} 34. a4 {[%clk 0:01:02.9]}
34... Bxf4 {[%clk 0:00:53.8]} 35. a5 {[%clk 0:01:03.5]} 35... Be5 {[%clk
0:00:55.1]} 36. Rc2 {[%clk 0:00:44.8]} 36... Rxc3 {[%clk 0:00:52.9]} 37. Rxc3
{[%clk 0:00:42.5]} 37... Re3 {[%clk 0:00:53.8]} 38. b5 {[%clk 0:00:40.8]} 38...
Bxc3+ {[%clk 0:00:54]} 39. Kc2 {[%clk 0:00:41.8]} 39... Bxa5 {[%clk 0:00:55.9]}
0-1

[Event "*** Titled Tuesday Blitz"]
[Site "Chess.com"]
[Date "2020.02.04"]
[Round "7"]
[White "politeplayer"]
[Black "2165149677570"]
[Result "1/2-1/2"]
[WhiteElo "2151"]
[BlackElo "2289"]
[TimeControl "180+2"]
[EndTime "14:31:44 PST"]
[Termination "Game drawn by repetition"]

1. e4 {[%clk 0:03:01.9]} 1... g6 {[%clk 0:02:59.6]} 2. d4 {[%clk 0:03:01.4]}
2... Nf6 {[%clk 0:03:01.1]} 3. Nc3 {[%clk 0:02:59.2]} 3... d5 {[%clk 0:03:01.8]}
4. exd5 {[%clk 0:03:00.7]} 4... Nxd5 {[%clk 0:03:02.4]} 5. Bc4 {[%clk
0:03:02.1]} 5... Nb6 {[%clk 0:03:03.6]} 6. Bb3 {[%clk 0:03:02.6]} 6... Bg7
{[%clk 0:03:05.1]} 7. Nf3 {[%clk 0:03:01.8]} 7... O-O {[%clk 0:03:06.3]} 8. h4
{[%clk 0:02:53.3]} 8... Bg4 {[%clk 0:03:04.6]} 9. Be3 {[%clk 0:02:50.8]} 9...
Nc6 {[%clk 0:03:03.1]} 10. Qd2 {[%clk 0:02:46.4]} 10... Bxf3 {[%clk 0:02:57.4]}
11. gxf3 {[%clk 0:02:46.3]} 11... Nxd4 {[%clk 0:02:59.3]} 12. Bxd4 {[%clk
0:02:35.9]} 12... Qxd4 {[%clk 0:03:01.2]} 13. Qe2 {[%clk 0:02:21.7]} 13... a5
{[%clk 0:02:51.5]} 14. a4 {[%clk 0:02:11.7]} 14... Qb4 {[%clk 0:02:44.8]} 15.
Kf1 {[%clk 0:01:44]} 15... h5 {[%clk 0:02:29.3]} 16. Ne4 {[%clk 0:01:32.8]}
16... c5 {[%clk 0:02:23.3]} 17. Ra3 {[%clk 0:01:20.5]} 17... c4 {[%clk
0:02:22.8]} 18. c3 {[%clk 0:01:18.1]} 18... Bxc3 {[%clk 0:01:41.2]} 19. Nxc3
{[%clk 0:01:05.8]} 19... cxb3 {[%clk 0:01:40.7]} 20. Kg2 {[%clk 0:01:03.2]}
20... Nc4 {[%clk 0:01:41.4]} 21. Nd5 {[%clk 0:00:58.7]} 21... Qc5 {[%clk
0:01:39.3]} 22. Nxe7+ {[%clk 0:00:55.7]} 22... Kh7 {[%clk 0:01:39.2]} 23. Rxb3
{[%clk 0:00:53.6]} 23... Rae8 {[%clk 0:01:11.4]} 24. Re1 {[%clk 0:00:54.4]}
24... Nd6 {[%clk 0:01:04.7]} 25. Rc3 {[%clk 0:00:48.6]} 25... Qb4 {[%clk
0:01:02]} 26. Qd2 {[%clk 0:00:44.1]} 26... Nc4 {[%clk 0:00:38.5]} 27. Qg5 {[%clk
0:00:37.1]} 27... Nxb2 {[%clk 0:00:31]} 28. Nd5 {[%clk 0:00:32.8]} 28... Rxe1
{[%clk 0:00:16.8]} 29. Nf6+ {[%clk 0:00:32.5]} 29... Kg7 {[%clk 0:00:17.7]} 30.
Nxh5+ {[%clk 0:00:32.4]} 30... Kg8 {[%clk 0:00:18.5]} 31. Nf6+ {[%clk
0:00:32.6]} 31... Kg7 {[%clk 0:00:20]} 32. Nh5+ {[%clk 0:00:32.7]} 32... Kg8
{[%clk 0:00:21.1]} 33. Nf6+ {[%clk 0:00:29.3]} 33... Kg7 {[%clk 0:00:21.6]} 34.
Nh5+ {[%clk 0:00:30]} 1/2-1/2

[Event "*** Titled Tuesday Blitz"]
[Site "Chess.com"]
[Date "2020.02.04"]
[Round "7"]
[White "goldenspine"]
[Black "PNEPaul"]
[Result "1-0"]
[WhiteElo "2337"]
[BlackElo "1828"]
[TimeControl "180+2"]
[EndTime "14:31:48 PST"]
[Termination "goldenspine won by resignation"]

1. d4 {[%clk 0:03:01.9]} 1... a6 {[%clk 0:03:00.1]} 2. c4 {[%clk 0:03:02.5]}
2... d6 {[%clk 0:02:59.6]} 3. Nc3 {[%clk 0:03:03.4]} 3... g6 {[%clk 0:03:00.4]}
4. e4 {[%clk 0:03:04]} 4... Nd7 {[%clk 0:03:01.4]} 5. Nf3 {[%clk 0:03:01.4]}
5... Bg7 {[%clk 0:03:02.3]} 6. Be2 {[%clk 0:03:02.1]} 6... e6 {[%clk 0:03:03.3]}
7. Be3 {[%clk 0:03:00.8]} 7... Ne7 {[%clk 0:03:03.6]} 8. Qd2 {[%clk 0:03:01.5]}
8... h6 {[%clk 0:03:04.8]} 9. O-O {[%clk 0:02:59.4]} 9... b6 {[%clk 0:03:05.8]}
10. Rad1 {[%clk 0:02:52.4]} 10... Bb7 {[%clk 0:03:06.6]} 11. Rfe1 {[%clk
0:02:43.5]} 11... Nf6 {[%clk 0:03:00.9]} 12. e5 {[%clk 0:02:41]} 12... Ng4
{[%clk 0:02:58.5]} 13. exd6 {[%clk 0:02:34.4]} 13... cxd6 {[%clk 0:02:59.4]} 14.
Bf4 {[%clk 0:02:33.7]} 14... g5 {[%clk 0:02:50.5]} 15. Bg3 {[%clk 0:02:34.1]}
15... O-O {[%clk 0:02:43.1]} 16. Nxg5 {[%clk 0:02:30.3]} 16... hxg5 {[%clk
0:02:36.1]} 17. Bxg4 {[%clk 0:02:27.7]} 17... f5 {[%clk 0:02:37]} 18. Qxg5
{[%clk 0:02:07.2]} 18... fxg4 {[%clk 0:02:26]} 19. Rxe6 {[%clk 0:02:07.7]} 19...
Nf5 {[%clk 0:02:20]} 20. Qxg4 {[%clk 0:02:02.4]} 20... Nxg3 {[%clk 0:01:58.7]}
21. Qxg3 {[%clk 0:01:52.8]} 21... Qd7 {[%clk 0:01:43.5]} 22. d5 {[%clk
0:01:44.7]} 22... Rae8 {[%clk 0:01:40.5]} 23. Rxd6 {[%clk 0:00:58.9]} 23... Qe7
{[%clk 0:01:40.4]} 24. Re6 {[%clk 0:00:56.5]} 24... Qc5 {[%clk 0:01:40.9]} 25.
Ne4 {[%clk 0:00:48]} 25... Qxc4 {[%clk 0:01:29]} 26. Rxe8 {[%clk 0:00:38.4]}
26... Rxe8 {[%clk 0:01:25.5]} 27. Nf6+ {[%clk 0:00:39.5]} 27... Kf7 {[%clk
0:01:26.4]} 28. Nxe8 {[%clk 0:00:40.6]} 28... Kxe8 {[%clk 0:01:27.1]} 29. Qxg7
{[%clk 0:00:38.5]} 29... Bxd5 {[%clk 0:01:22.7]} 30. Re1+ {[%clk 0:00:29.4]}
30... Kd8 {[%clk 0:01:21.7]} 31. Qe7+ {[%clk 0:00:26.4]} 31... Kc8 {[%clk
0:01:22]} 32. h4 {[%clk 0:00:18.6]} 32... Qg4 {[%clk 0:01:07.7]} 33. Qg5 {[%clk
0:00:13.6]} 33... Qd7 {[%clk 0:01:04]} 34. Re7 {[%clk 0:00:13.3]} 34... Qd8
{[%clk 0:00:58.8]} 35. Qf5+ {[%clk 0:00:13.2]} 35... Kb8 {[%clk 0:00:57.8]} 36.
Rd7 {[%clk 0:00:11]} 36... Qg8 {[%clk 0:00:52.5]} 37. Qe5+ {[%clk 0:00:10.9]}
37... Ka8 {[%clk 0:00:52.5]} 38. Qxd5+ {[%clk 0:00:11.3]} 1-0

[Event "*** Titled Tuesday Blitz"]
[Site "Chess.com"]
[Date "2020.02.04"]
[Round "7"]
[White "Tayson_7"]
[Black "Hrant_ChessMood"]
[Result "1-0"]
[WhiteElo "2706"]
[BlackElo "2893"]
[TimeControl "180+2"]
[EndTime "14:31:51 PST"]
[Termination "Tayson_7 won by resignation"]

1. e4 {[%clk 0:03:01.9]} 1... c6 {[%clk 0:02:59.9]} 2. d4 {[%clk 0:03:02.1]}
2... d5 {[%clk 0:03:01.4]} 3. exd5 {[%clk 0:03:03.7]} 3... cxd5 {[%clk
0:03:02.6]} 4. c4 {[%clk 0:03:05.4]} 4... Nf6 {[%clk 0:03:02.7]} 5. Nc3 {[%clk
0:03:06.9]} 5... e6 {[%clk 0:03:03.2]} 6. Nf3 {[%clk 0:03:04.7]} 6... Bb4 {[%clk
0:03:02.6]} 7. a3 {[%clk 0:03:01.1]} 7... Bxc3+ {[%clk 0:03:01.8]} 8. bxc3
{[%clk 0:03:03]} 8... O-O {[%clk 0:03:00]} 9. Bb2 {[%clk 0:02:48.5]} 9... b6
{[%clk 0:02:57.4]} 10. Bd3 {[%clk 0:02:40.9]} 10... Ba6 {[%clk 0:02:57.7]} 11.
cxd5 {[%clk 0:02:37.2]} 11... Bxd3 {[%clk 0:02:43]} 12. Qxd3 {[%clk 0:02:39.1]}
12... exd5 {[%clk 0:02:44.9]} 13. O-O {[%clk 0:02:39.4]} 13... Nc6 {[%clk
0:02:46.6]} 14. Ne5 {[%clk 0:02:26.1]} 14... Na5 {[%clk 0:02:41.9]} 15. a4
{[%clk 0:02:14.8]} 15... Rc8 {[%clk 0:02:37.9]} 16. Rfe1 {[%clk 0:02:12.4]}
16... Re8 {[%clk 0:02:38.7]} 17. h3 {[%clk 0:02:09]} 17... h6 {[%clk 0:02:28.2]}
18. Ba3 {[%clk 0:02:04.2]} 18... Nc4 {[%clk 0:02:07.1]} 19. Nxc4 {[%clk
0:02:04.5]} 19... dxc4 {[%clk 0:02:02.5]} 20. Qf5 {[%clk 0:02:05.2]} 20... Qd5
{[%clk 0:01:57.3]} 21. Qf4 {[%clk 0:02:02.8]} 21... Qd7 {[%clk 0:01:56.1]} 22.
a5 {[%clk 0:01:57.8]} 22... Nd5 {[%clk 0:01:56.5]} 23. Qf3 {[%clk 0:01:54.2]}
23... b5 {[%clk 0:01:48.3]} 24. a6 {[%clk 0:01:47.5]} 24... Re6 {[%clk
0:01:01.6]} 25. Rxe6 {[%clk 0:01:37.9]} 25... fxe6 {[%clk 0:01:02.5]} 26. Bc5
{[%clk 0:01:38.3]} 26... Qf7 {[%clk 0:00:48.1]} 27. Qg3 {[%clk 0:01:19.6]} 27...
Kh7 {[%clk 0:00:46.6]} 28. Rb1 {[%clk 0:01:15.4]} 28... Rc6 {[%clk 0:00:42.2]}
29. Rxb5 {[%clk 0:01:12.5]} 29... Rxa6 {[%clk 0:00:43.1]} 30. Rb8 {[%clk
0:01:13.8]} 30... Ra1+ {[%clk 0:00:34]} 31. Kh2 {[%clk 0:01:14.5]} 31... Ra2
{[%clk 0:00:35.9]} 32. Rf8 {[%clk 0:01:14.9]} 32... Qc7 {[%clk 0:00:22.9]} 33.
Bd6 {[%clk 0:01:14.9]} 33... Qd7 {[%clk 0:00:24.2]} 34. Be5 {[%clk 0:01:09]}
34... Ra3 {[%clk 0:00:21.6]} 35. Qf3 {[%clk 0:01:03]} 35... Nf6 {[%clk 0:00:14]}
36. Bxf6 {[%clk 0:01:01.8]} 36... gxf6 {[%clk 0:00:14]} 37. Qxf6 {[%clk
0:01:03.7]} 37... Qg7 {[%clk 0:00:11.1]} 38. Rf7 {[%clk 0:01:04.6]} 1-0

[Event "*** Titled Tuesday Blitz"]
[Site "Chess.com"]
[Date "2020.02.04"]
[Round "7"]
[White "SantoBlue"]
[Black "Sibelephant"]
[Result "0-1"]
[WhiteElo "2827"]
[BlackElo "3060"]
[TimeControl "180+2"]
[EndTime "14:31:53 PST"]
[Termination "Sibelephant won by resignation"]

1. c4 {[%clk 0:03:01.4]} 1... e5 {[%clk 0:03:00.7]} 2. Nc3 {[%clk 0:03:00.5]}
2... Nf6 {[%clk 0:03:01.7]} 3. g3 {[%clk 0:02:57.9]} 3... Nc6 {[%clk 0:03:02]}
4. Bg2 {[%clk 0:02:58.2]} 4... g6 {[%clk 0:03:03.3]} 5. d3 {[%clk 0:02:54.3]}
5... Bg7 {[%clk 0:03:04.3]} 6. Nf3 {[%clk 0:02:54.3]} 6... O-O {[%clk
0:03:05.4]} 7. O-O {[%clk 0:02:54]} 7... Re8 {[%clk 0:03:06.5]} 8. Bg5 {[%clk
0:02:51.8]} 8... h6 {[%clk 0:03:07.1]} 9. Bd2 {[%clk 0:02:53]} 9... d6 {[%clk
0:02:59.9]} 10. Qc1 {[%clk 0:02:50.8]} 10... Kh7 {[%clk 0:02:55.5]} 11. Rb1
{[%clk 0:02:51]} 11... a5 {[%clk 0:02:55.1]} 12. Nd5 {[%clk 0:02:47.2]} 12...
Bg4 {[%clk 0:02:27]} 13. Nxf6+ {[%clk 0:02:44.9]} 13... Qxf6 {[%clk 0:02:27.7]}
14. Bc3 {[%clk 0:02:37.6]} 14... Qe6 {[%clk 0:02:27.3]} 15. Re1 {[%clk
0:02:30.2]} 15... Bh3 {[%clk 0:02:18.7]} 16. Qd2 {[%clk 0:01:34.1]} 16... Bxg2
{[%clk 0:02:18.6]} 17. Kxg2 {[%clk 0:01:34.8]} 17... f5 {[%clk 0:02:18.2]} 18.
h4 {[%clk 0:01:28.4]} 18... e4 {[%clk 0:01:52.1]} 19. Ng1 {[%clk 0:01:22.3]}
19... d5 {[%clk 0:01:34.1]} 20. cxd5 {[%clk 0:01:19]} 20... Qxd5 {[%clk
0:01:34.4]} 21. dxe4 {[%clk 0:01:18.2]} 21... Qxe4+ {[%clk 0:01:35.6]} 22. f3
{[%clk 0:01:17.7]} 22... Qe6 {[%clk 0:01:28.5]} 23. Bxg7 {[%clk 0:01:16.5]}
23... Kxg7 {[%clk 0:01:29.6]} 24. Nh3 {[%clk 0:01:14.4]} 24... Rad8 {[%clk
0:01:28.5]} 25. Qc3+ {[%clk 0:01:14.2]} 25... Qf6 {[%clk 0:01:25.9]} 26. Qxf6+
{[%clk 0:01:11.2]} 26... Kxf6 {[%clk 0:01:26.7]} 27. Nf4 {[%clk 0:01:10.7]}
27... Nb4 {[%clk 0:01:08.8]} 28. a3 {[%clk 0:01:03.5]} 28... Nc2 {[%clk
0:01:09.5]} 29. Rec1 {[%clk 0:01:02.9]} 29... Rd2 {[%clk 0:01:10.3]} 30. Kf1
{[%clk 0:00:53.8]} 30... c6 {[%clk 0:01:05.3]} 31. Kg1 {[%clk 0:00:21.8]} 31...
g5 {[%clk 0:01:03.7]} 32. hxg5+ {[%clk 0:00:21.4]} 32... hxg5 {[%clk 0:01:05.1]}
33. Nd3 {[%clk 0:00:10.6]} 33... Rexe2 {[%clk 0:01:05.1]} 34. Rd1 {[%clk
0:00:06.9]} 34... Rg2+ {[%clk 0:01:05.1]} 35. Kh1 {[%clk 0:00:08.4]} 35... Rh2+
{[%clk 0:01:06.3]} 36. Kg1 {[%clk 0:00:09.4]} 36... Rdg2+ {[%clk 0:01:07.9]} 0-1

[Event "*** Titled Tuesday Blitz"]
[Site "Chess.com"]
[Date "2020.02.04"]
[Round "7"]
[White "VladDobrov"]
[Black "AliKa2810"]
[Result "1-0"]
[WhiteElo "2901"]
[BlackElo "2636"]
[TimeControl "180+2"]
[EndTime "14:31:54 PST"]
[Termination "VladDobrov won by resignation"]

1. e4 {[%clk 0:03:01.9]} 1... c6 {[%clk 0:03:00.4]} 2. d4 {[%clk 0:02:53.6]}
2... d5 {[%clk 0:03:00.3]} 3. f3 {[%clk 0:02:54.4]} 3... Qb6 {[%clk 0:02:59.7]}
4. Nc3 {[%clk 0:02:54.9]} 4... e6 {[%clk 0:02:46.9]} 5. a4 {[%clk 0:02:42]} 5...
Bb4 {[%clk 0:02:45.2]} 6. Ne2 {[%clk 0:02:36.5]} 6... dxe4 {[%clk 0:02:36.9]} 7.
fxe4 {[%clk 0:02:36.2]} 7... Nf6 {[%clk 0:02:38.5]} 8. e5 {[%clk 0:02:33.4]}
8... Nd5 {[%clk 0:02:35.2]} 9. Qd3 {[%clk 0:02:27.7]} 9... O-O {[%clk
0:02:34.9]} 10. Bd2 {[%clk 0:02:25.4]} 10... Nd7 {[%clk 0:02:21.3]} 11. Kd1
{[%clk 0:01:20.8]} 11... Nxc3+ {[%clk 0:01:30.5]} 12. bxc3 {[%clk 0:01:14.7]}
12... Be7 {[%clk 0:01:25.6]} 13. Qg3 {[%clk 0:01:15.2]} 13... Rd8 {[%clk
0:01:24.2]} 14. Nc1 {[%clk 0:01:10.6]} 14... c5 {[%clk 0:01:22.2]} 15. a5 {[%clk
0:01:06.8]} 15... Qc7 {[%clk 0:01:14.2]} 16. Bd3 {[%clk 0:01:07.2]} 16... cxd4
{[%clk 0:01:14.2]} 17. cxd4 {[%clk 0:01:07.2]} 17... Nf8 {[%clk 0:01:14.3]} 18.
Ne2 {[%clk 0:00:51.4]} 18... Bd7 {[%clk 0:01:14.5]} 19. h4 {[%clk 0:00:51.8]}
19... Rac8 {[%clk 0:01:08.4]} 20. h5 {[%clk 0:00:53]} 20... a6 {[%clk
0:01:04.7]} 21. Bh6 {[%clk 0:00:52.7]} 21... g6 {[%clk 0:01:04]} 22. Bd2 {[%clk
0:00:53.1]} 22... Bb5 {[%clk 0:01:01.8]} 23. hxg6 {[%clk 0:00:42.1]} 23... fxg6
{[%clk 0:01:02.5]} 24. c4 {[%clk 0:00:35.5]} 24... Bxc4 {[%clk 0:01:02]} 25. Rc1
{[%clk 0:00:36.6]} 25... Bb3+ {[%clk 0:01:02.8]} 26. Ke1 {[%clk 0:00:38.1]}
26... Qd7 {[%clk 0:00:57.5]} 27. Kf2 {[%clk 0:00:38.6]} 27... Rxc1 {[%clk
0:00:53.6]} 28. Rxc1 {[%clk 0:00:36.6]} 28... Rc8 {[%clk 0:00:37]} 29. Rf1
{[%clk 0:00:37]} 29... Bc2 {[%clk 0:00:37]} 30. Kg1 {[%clk 0:00:38.1]} 30...
Bxd3 {[%clk 0:00:37.6]} 31. Qxd3 {[%clk 0:00:40]} 31... Qb5 {[%clk 0:00:35.2]}
32. Qf3 {[%clk 0:00:41]} 32... Qe8 {[%clk 0:00:28.7]} 33. Bh6 {[%clk 0:00:40.2]}
33... Rc7 {[%clk 0:00:21.9]} 34. Ng3 {[%clk 0:00:38.2]} 34... Bh4 {[%clk
0:00:15.2]} 35. Qxf8+ {[%clk 0:00:37.4]} 1-0

[Event "*** Titled Tuesday Blitz"]
[Site "Chess.com"]
[Date "2020.02.04"]
[Round "7"]
[White "wolfje95"]
[Black "Astaneh"]
[Result "0-1"]
[WhiteElo "2383"]
[BlackElo "2547"]
[TimeControl "180+2"]
[EndTime "14:31:54 PST"]
[Termination "Astaneh won by resignation"]

1. e4 {[%clk 0:03:01.4]} 1... c5 {[%clk 0:02:59.2]} 2. Nf3 {[%clk 0:03:01.9]}
2... Nc6 {[%clk 0:02:57.5]} 3. g3 {[%clk 0:02:59.5]} 3... Nf6 {[%clk 0:02:55.1]}
4. d3 {[%clk 0:03:00.5]} 4... d5 {[%clk 0:02:55.6]} 5. Nbd2 {[%clk 0:02:59.4]}
5... dxe4 {[%clk 0:02:52.1]} 6. dxe4 {[%clk 0:02:58.3]} 6... Bg4 {[%clk
0:02:50.6]} 7. Bg2 {[%clk 0:02:58.1]} 7... Ne5 {[%clk 0:02:45.2]} 8. O-O {[%clk
0:02:52.7]} 8... Nxf3+ {[%clk 0:02:45.7]} 9. Bxf3 {[%clk 0:02:51.5]} 9... h5
{[%clk 0:02:46.4]} 10. e5 {[%clk 0:02:47.6]} 10... Nd7 {[%clk 0:02:46.6]} 11.
Bxg4 {[%clk 0:02:45.1]} 11... hxg4 {[%clk 0:02:48.5]} 12. Qxg4 {[%clk
0:02:46.5]} 12... Nxe5 {[%clk 0:02:49.2]} 13. Qa4+ {[%clk 0:02:41.1]} 13... Qd7
{[%clk 0:02:49.8]} 14. Qxd7+ {[%clk 0:02:40.8]} 14... Kxd7 {[%clk 0:02:51.7]}
15. Kg2 {[%clk 0:02:39.1]} 15... Kc6 {[%clk 0:02:51.9]} 16. Ne4 {[%clk
0:02:30.6]} 16... Rd8 {[%clk 0:02:47.8]} 17. Bf4 {[%clk 0:02:29.7]} 17... Ng6
{[%clk 0:02:43.1]} 18. Be3 {[%clk 0:02:30.1]} 18... e6 {[%clk 0:02:41.3]} 19.
Rad1 {[%clk 0:02:28.9]} 19... Be7 {[%clk 0:02:41.3]} 20. f4 {[%clk 0:02:22.4]}
20... f5 {[%clk 0:02:40.5]} 21. Nc3 {[%clk 0:02:20.8]} 21... Bf6 {[%clk
0:02:41]} 22. Rxd8 {[%clk 0:02:07]} 22... Rxd8 {[%clk 0:02:42.9]} 23. Rd1 {[%clk
0:02:08.3]} 23... Rxd1 {[%clk 0:02:39.7]} 24. Nxd1 {[%clk 0:02:10.2]} 24... Ne7
{[%clk 0:02:41.3]} 25. Kf3 {[%clk 0:02:07.5]} 25... Nd5 {[%clk 0:02:41.6]} 26.
Bd2 {[%clk 0:02:07.3]} 26... b5 {[%clk 0:02:40.1]} 27. c3 {[%clk 0:01:54.5]}
27... a5 {[%clk 0:02:32.1]} 28. Ne3 {[%clk 0:01:48.7]} 28... b4 {[%clk
0:02:26.1]} 29. Nc4 {[%clk 0:01:21.8]} 29... bxc3 {[%clk 0:02:21.9]} 30. bxc3
{[%clk 0:01:13.7]} 30... Nxc3 {[%clk 0:02:08.9]} 31. Nxa5+ {[%clk 0:01:12.2]}
31... Kb5 {[%clk 0:02:08]} 32. Bxc3 {[%clk 0:00:56.9]} 32... Bxc3 {[%clk
0:02:09.9]} 33. Nb3 {[%clk 0:00:52.5]} 33... c4 {[%clk 0:02:10.4]} 34. Nc1
{[%clk 0:00:53.2]} 34... Bd2 {[%clk 0:02:11.8]} 35. Ne2 {[%clk 0:00:38.9]} 35...
c3 {[%clk 0:02:12.2]} 36. g4 {[%clk 0:00:37.1]} 36... Kc4 {[%clk 0:02:09.2]} 37.
h4 {[%clk 0:00:30.6]} 37... fxg4+ {[%clk 0:02:01.1]} 38. Kxg4 {[%clk 0:00:30.1]}
38... Kd3 {[%clk 0:02:03]} 39. Nxc3 {[%clk 0:00:29.9]} 39... Bxc3 {[%clk
0:02:03.5]} 40. f5 {[%clk 0:00:26.2]} 40... exf5+ {[%clk 0:02:02.8]} 41. Kxf5
{[%clk 0:00:26.9]} 41... Bd2 {[%clk 0:02:03.2]} 42. Ke6 {[%clk 0:00:13.8]} 42...
Kc4 {[%clk 0:02:02.2]} 43. Kf7 {[%clk 0:00:12.2]} 43... Bh6 {[%clk 0:02:02.4]}
44. h5 {[%clk 0:00:12]} 44... Kb4 {[%clk 0:02:04.3]} 45. Kg6 {[%clk 0:00:12.4]}
45... Ka3 {[%clk 0:02:06.2]} 46. Kf5 {[%clk 0:00:13.5]} 46... Kxa2 {[%clk
0:02:01.2]} 47. Kg4 {[%clk 0:00:13.7]} 47... Kb3 {[%clk 0:02:02.2]} 48. Kh4
{[%clk 0:00:14.8]} 48... Kc4 {[%clk 0:02:03.4]} 49. Kg4 {[%clk 0:00:11.7]} 49...
Kd5 {[%clk 0:02:03.8]} 50. Kh4 {[%clk 0:00:13]} 50... Ke5 {[%clk 0:02:04.1]} 51.
Kg4 {[%clk 0:00:13]} 51... Ke4 {[%clk 0:02:04.7]} 52. Kh4 {[%clk 0:00:14.1]}
52... Kf4 {[%clk 0:02:03.7]} 0-1

[Event "*** Titled Tuesday Blitz"]
[Site "Chess.com"]
[Date "2020.02.04"]
[Round "7"]
[White "vugarrasulov"]
[Black "Kobalia"]
[Result "1-0"]
[WhiteElo "2904"]
[BlackElo "2636"]
[TimeControl "180+2"]
[EndTime "14:31:58 PST"]
[Termination "vugarrasulov won on time"]

1. e4 {[%clk 0:03:01.9]} 1... c6 {[%clk 0:02:58.8]} 2. d4 {[%clk 0:03:01.5]}
2... d5 {[%clk 0:02:59.2]} 3. Nc3 {[%clk 0:03:03.1]} 3... dxe4 {[%clk
0:02:58.9]} 4. Nxe4 {[%clk 0:03:05]} 4... Bf5 {[%clk 0:02:59.9]} 5. Nc5 {[%clk
0:03:05.8]} 5... e5 {[%clk 0:02:58]} 6. Nxb7 {[%clk 0:03:06.3]} 6... Qb6 {[%clk
0:02:58.1]} 7. Nc5 {[%clk 0:03:07.2]} 7... Bxc5 {[%clk 0:02:58.7]} 8. dxc5
{[%clk 0:03:08.2]} 8... Qxc5 {[%clk 0:02:59.7]} 9. c3 {[%clk 0:03:09.6]} 9...
Nf6 {[%clk 0:02:54.5]} 10. Nf3 {[%clk 0:03:10.7]} 10... O-O {[%clk 0:02:46.8]}
11. Be2 {[%clk 0:03:07.7]} 11... Nbd7 {[%clk 0:02:24.3]} 12. O-O {[%clk
0:03:08.9]} 12... a5 {[%clk 0:02:14]} 13. Qa4 {[%clk 0:03:02.7]} 13... Nb6
{[%clk 0:02:03.5]} 14. Qh4 {[%clk 0:03:03.1]} 14... Qe7 {[%clk 0:01:34.2]} 15.
Re1 {[%clk 0:03:02.2]} 15... Rfe8 {[%clk 0:01:29.7]} 16. Bf1 {[%clk 0:02:58.3]}
16... Nbd7 {[%clk 0:01:29.7]} 17. Nd4 {[%clk 0:02:52.8]} 17... Be4 {[%clk
0:01:22.9]} 18. Nb3 {[%clk 0:02:44.2]} 18... a4 {[%clk 0:01:19.2]} 19. Nd2
{[%clk 0:02:45.6]} 19... Bg6 {[%clk 0:01:16.6]} 20. Nc4 {[%clk 0:02:45.5]} 20...
e4 {[%clk 0:01:07.8]} 21. Bf4 {[%clk 0:02:43.9]} 21... Nd5 {[%clk 0:01:07.7]}
22. Qxe7 {[%clk 0:02:44.3]} 22... Rxe7 {[%clk 0:01:08.3]} 23. Bd6 {[%clk
0:02:43.7]} 23... Re6 {[%clk 0:01:07.3]} 24. Ba3 {[%clk 0:02:40.7]} 24... Rb8
{[%clk 0:01:04]} 25. Rad1 {[%clk 0:02:40.4]} 25... h6 {[%clk 0:01:01]} 26. Rd4
{[%clk 0:02:40]} 26... N7f6 {[%clk 0:00:59.9]} 27. Ne3 {[%clk 0:02:37.9]} 27...
Nxe3 {[%clk 0:00:54.8]} 28. fxe3 {[%clk 0:02:38.8]} 28... Ra8 {[%clk 0:00:46.8]}
29. Bc4 {[%clk 0:02:33.1]} 29... Re5 {[%clk 0:00:46.8]} 30. h3 {[%clk
0:02:31.5]} 30... Nd5 {[%clk 0:00:44.7]} 31. Bd6 {[%clk 0:02:28.8]} 31... Rg5
{[%clk 0:00:44.8]} 32. a3 {[%clk 0:02:28.1]} 32... Ra7 {[%clk 0:00:40.9]} 33.
Ba2 {[%clk 0:02:19.2]} 33... Rb7 {[%clk 0:00:39.8]} 34. Re2 {[%clk 0:02:11.4]}
34... Nxe3 {[%clk 0:00:38.9]} 35. Rb4 {[%clk 0:01:47.4]} 35... Rxb4 {[%clk
0:00:37.8]} 36. axb4 {[%clk 0:01:45.5]} 36... Nd5 {[%clk 0:00:36]} 37. c4 {[%clk
0:01:37.6]} 37... Nb6 {[%clk 0:00:25.2]} 38. c5 {[%clk 0:01:38.4]} 38... Nd5
{[%clk 0:00:25.3]} 39. b5 {[%clk 0:01:39]} 39... cxb5 {[%clk 0:00:16.3]} 40. c6
{[%clk 0:01:40.2]} 40... b4 {[%clk 0:00:13.8]} 41. h4 {[%clk 0:01:37.1]} 41...
Rf5 {[%clk 0:00:11.4]} 42. g4 {[%clk 0:01:38.3]} 42... b3 {[%clk 0:00:04.6]} 43.
Bxb3 {[%clk 0:01:38.6]} 1-0